Cogmind - Beta 12 @@@ ROGUE MODE // 2023.08.11 @ 21:07:04 Player: Shadow Pussy wanter Result: Self-destructed Performance ------------- Evolutions (2) 1000 Regions Visited (5) 1000 Robots Destroyed (8) 40 Value Destroyed (284) 284 Prototype IDs (0) 0 Alien Tech Used (0) 0 Bonus (0) 0 TOTAL SCORE: 2324 Bonus ------- None Cogmind --------- Core Integrity 513/550 Matter 300/300 Energy 100/100 System Corruption 0% Temperature Cool (0) Movement Rolling (115) Ox1 Location -8/Materials Parts ------- > --- POWER (1) -------- (None) > --- PROPULSION (4) --- Compact Wheel Compact Wheel > --- UTILITY (4) ------ High-capacity Storage Unit > --- WEAPON (2) ------- (None) > --- INVENTORY (20) --- Ion Engine Wheel Wheel Medium Storage Unit High-capacity Matter Pod (200) Experimental Sensor Array Improved Terrain Scanner Peak State ------------ > --- POWER ------------ Light Nuclear Core > --- PROPULSION ------- Aluminum Leg Aluminum Leg > --- UTILITY ---------- High-capacity Storage Unit Weapon Shielding > --- WEAPON ----------- Small Laser Light Assault Rifle > --- INVENTORY -------- Ion Engine Light Treads Light Treads Compact Wheel Compact Wheel Medium Storage Unit High-capacity Matter Pod Experimental Sensor Array Improved Terrain Scanner EM Pulse Gun [Rating: 11] Favorites ----------- Power Light Nuclear Core Engine Light Ion Engine Power Core Light Nuclear Core Propulsion Aluminum Leg Treads Light Treads Leg Aluminum Leg Wheel Compact Wheel Utility Weapon Shielding Storage High-capacity Storage Unit Protection Weapon Shielding Weapon Light Assault Rifle Energy Gun Small Laser Ballistic Gun Light Assault Rifle Build | -11 -10 -10 -10 -9 -8 ------- Run | Jun Mat Min Exi Min Mat Slots Evolved 4 | . . . . . 4 Power . | . . . . . . Propulsion 2 | . . . . . 2 Utility 2 | . . . . . 2 Weapon . | . . . . . . Parts Attached 20 | 6 3 4 1 4 2 Power 3 | 1 1 1 . . . Engine 1 | 1 . . . . . Core 2 | . 1 1 . . . Reactor . | . . . . . . Propulsion 9 | 2 1 2 . 2 2 Treads 2 | . . . . . 2 Leg 5 | 2 1 2 . . . Wheel 2 | . . . . 2 . Hover . | . . . . . . Flight . | . . . . . . Utility 4 | 1 1 1 1 . . Device . | . . . . . . Storage 3 | 1 . 1 1 . . Processor . | . . . . . . Hackware . | . . . . . . Protection 1 | . 1 . . . . Artifact . | . . . . . . Weapon 4 | 2 . . . 2 . Energy Gun 3 | 1 . . . 2 . Energy Cannon . | . . . . . . Ballistic Gun 1 | 1 . . . . . Ballistic Cannon . | . . . . . . Launcher . | . . . . . . Special Weapon . | . . . . . . Impact Weapon . | . . . . . . Slashing Weapon . | . . . . . . Piercing Weapon . | . . . . . . Special Melee Weapon . | . . . . . . Unidentified Prototypes . | . . . . . . Parts Lost 9 | . . . . 4 5 Power 1 | . . . . . 1 Propulsion 3 | . . . . 1 2 Utility 1 | . . . . 1 . Weapon 4 | . . . . 2 2 Highest Loss Streak 5 | . . . . 2 5 To Critical Strikes . | . . . . . . Average Slot Usage (%) 94 | . 97 100 100 84 68 Core 13 | . 10 14 14 14 9 Leg 22 | . 28 28 28 7 . Wheel 5 | . . . . 20 18 Storage 13 | . 14 14 14 14 9 Protection 10 | . 12 14 14 1 . Energy Gun 13 | . 14 14 14 13 9 Ballistic Gun 13 | . 14 14 14 14 6 Naked Turns . | . . . . . . Heaviest Build 48 | 10 13 18 48 48 47 Greatest Support 40 | 20 20 20 20 32 40 Greatest Overweight (x) 4 | . . . 2 4 1 Average Overweight (x) . | . . . . 1 1 Largest Inventory Capacity 20 | 8 8 10 20 20 20 Average Capacity 13 | 7 8 9 13 20 20 Most Carried 10 | 7 8 9 10 10 8 Average Carried 8 | 3 7 8 9 8 7 Final Capacity 20 | 8 8 10 20 20 20 Final Carried 10 | 7 8 9 10 9 7 Class Distribution -------------------- 100% | Mutant Dominant Class ---------------- Mutant | -10/Materials Mutant | -10/Mines Mutant | -10/Exiles Mutant | -9/Mines Mutant | -8/Materials Resources | -11 -10 -10 -10 -9 -8 ----------- Run | Jun Mat Min Exi Min Mat Matter Collected 610 | 228 281 48 . 50 3 Remotely . | . . . . . . Salvage Created 353 | 10 133 95 . 115 . Parts 13 | 2 6 3 . 2 . Haulers Intercepted . | . . . . . . Recyclers Shooed 2 | . 2 . . . . Parts Field Recycled . | . . . . . . Retrieved Matter . | . . . . . . Parts Self-Destructed . | . . . . . . Prevented . | . . . . . . Kills | -11 -10 -10 -10 -9 -8 ------- Run | Jun Mat Min Exi Min Mat Combat Hostiles Destroyed 8 | . 3 2 . 3 . Guns 7 | . 3 2 . 2 . AOE 1 | . . . . 1 . Classes Destroyed 3 | 1 1 . . 1 . Tunneler 1 | 1 . . . . . Grunt 7 | . 3 2 . 2 . Assembled 1 | . . . . 1 . Best Kill Streak 2 | 1 2 2 . 2 . Combat Bots Only 2 | . 2 2 . 2 . Max Kills in Single Turn 1 | 1 1 1 . 1 . Gunslinging . | . . . . . . Exploded 1 | . . . . 1 . Melee . | . . . . . . Uniques/NPCs Destroyed . | . . . . . . Combat | -11 -10 -10 -10 -9 -8 -------- Run | Jun Mat Min Exi Min Mat Damage Taken 1136 | . 217 168 . 325 426 Core 187 | . 54 34 . 62 37 Absorbed by Shields . | . . . . . . Redirected to Shielding 51 | . 16 19 . 16 . Core Remaining (%) 70 | 100 . . . 40 . Volleys Fired 45 | 1 18 8 . 13 5 Largest 2 | 2 2 2 . 2 1 Hottest 60 | 60 60 60 . 60 40 Shots Fired 84 | 2 36 16 . 25 5 Gun 84 | 2 36 16 . 25 5 Cannon . | . . . . . . Launcher . | . . . . . . Special . | . . . . . . Kinetic 40 | 1 18 8 . 13 . Thermal 36 | 1 18 8 . 4 5 Explosive . | . . . . . . Electromagnetic 8 | . . . . 8 . Robot Hit Streak 6 | 1 5 6 . 6 5 Robot Miss Streak 3 | . 3 2 . 2 2 Penetration Max . | . . . . . . Secondary Targets 1 | . . 1 . . . Max Gunslinging Chain 1 | . . 1 . . . Shots Hit Robots 52 | 1 19 12 . 17 3 Core Hits 31 | 1 13 9 . 7 1 Critical Kills . | . . . . . . Critical Parts Destroyed 1 | . . . . 1 . Critical Strikes 2 | . . . . 2 . Destroy 1 | . . . . 1 . Corrupt 1 | . . . . 1 . Melee Attacks . | . . . . . . Impact . | . . . . . . Slashing . | . . . . . . Piercing . | . . . . . . Sneak Attacks . | . . . . . . Combat Hostiles . | . . . . . . Follow-up Attacks . | . . . . . . Damage Inflicted 595 | 12 182 138 . 229 34 Guns 525 | 12 182 128 . 169 34 Cannons . | . . . . . . Explosions 60 | . . . . 60 . Melee . | . . . . . . Ramming 10 | . . 10 . . . Kinetic 177 | . 73 47 . 57 . Thermal 339 | 12 109 81 . 103 34 Explosive . | . . . . . . Electromagnetic 69 | . . . . 69 . Impact . | . . . . . . Slashing . | . . . . . . Piercing . | . . . . . . Highest Corruption . | . . . . . . Average Corruption . | . . . . . . Corruption Purged . | . . . . . . Corruption Blocked . | . . . . . . Overload Shots . | . . . . . . Overflow Damage . | . . . . . . Projectiles . | . . . . . . Explosions . | . . . . . . Melee . | . . . . . . Knockbacks 1 | . . 1 . . . Impact 1 | . . 1 . . . Kinetic . | . . . . . . Secondary . | . . . . . . Self-Inflicted Damage 18 | . . . . 18 . Shots 1 | . . . . 1 . Rammed . | . . . . . . Targets Rammed 5 | . . 5 . . . Kicked 5 | . . 5 . . . Crushed . | . . . . . . Highest Temperature 213 | 20 183 177 . 213 . Average Temperature 76 | 15 65 91 . 85 . Received Heat Transfer 360 | . 150 93 . 117 . Siege Activations . | . . . . . . Robots Corrupted . | . . . . . . Combat Hostiles . | . . . . . . Parts Fried . | . . . . . . Impact Corruptions . | . . . . . . Robots Melted . | . . . . . . Combat Hostiles . | . . . . . . Parts Melted 1 | . . . . 1 . Heat Transferred 675 | 25 250 175 . 150 75 Parts Sabotaged . | . . . . . . Parts Stolen . | . . . . . . Parts Stripped . | . . . . . . Power Chain Reactions 1 | . . . . 1 . Missiles Intercepted . | . . . . . . Alert | -11 -10 -10 -10 -9 -8 ------- Run | Jun Mat Min Exi Min Mat Peak Influence 93 | 5 73 93 . 43 28 Initial 28 | . 3 28 . . 8 Average 39 | 1 33 89 . 24 13 Maximum Alert Level . | . . . . . . Low Security (%) 100 | 100 100 100 . 100 100 Level 1 . | . . . . . . Level 2 . | . . . . . . Level 3 . | . . . . . . Level 4 . | . . . . . . Level 5 . | . . . . . . High Security . | . . . . . . Max Security . | . . . . . . Squads Dispatched 2 | . . . . . 2 Investigation . | . . . . . . Extermination . | . . . . . . Reinforcement 2 | . . . . . 2 Assault . | . . . . . . Garrison . | . . . . . . Intercept . | . . . . . . Searches Triggered . | . . . . . . Construction Impeded . | . . . . . . Haulers Reinforced . | . . . . . . Active Scanning Responses . | . . . . . . Cargo Convoy Interrupts . | . . . . . . Stealth | -11 -10 -10 -10 -9 -8 --------- Run | Jun Mat Min Exi Min Mat Distress Signals 2 | . . . . 2 . Communications Jammed . | . . . . . . Distress Signals . | . . . . . . Times Spotted 14 | . 5 2 . 4 3 Peak Tracking Total 3 | . 3 2 . 2 2 Tactical Retreats 1 | . . . . . 1 Traps | -11 -10 -10 -10 -9 -8 ------- Run | Jun Mat Min Exi Min Mat Traps Triggered . | . . . . . . Indirectly . | . . . . . . Trap Hack Attempts . | . . . . . . Triggered . | . . . . . . Disarmed . | . . . . . . Reprogrammed . | . . . . . . Reused . | . . . . . . Traps Extracted . | . . . . . . Installed . | . . . . . . Triggered . | . . . . . . Machines | -11 -10 -10 -10 -9 -8 ---------- Run | Jun Mat Min Exi Min Mat Machines Disabled . | . . . . . . Max in Single Turn . | . . . . . . Machines Repaired . | . . . . . . Machines Sabotaged . | . . . . . . Overloaded Fab Kills . | . . . . . . Hacking | -11 -10 -10 -10 -9 -8 --------- Run | Jun Mat Min Exi Min Mat Machines Accessed 2 | . 1 . 1 . . Terminals 1 | . 1 . . . . Fabricators . | . . . . . . Repair Stations . | . . . . . . Recycling Units . | . . . . . . Scanalyzers . | . . . . . . Garrison Access . | . . . . . . Total Hacks 3 | . 2 . 1 . . Successful 2 | . 1 . 1 . . Failed . | . . . . . . Catastrophic . | . . . . . . Database Lockouts 1 | . 1 . . . . Manual 2 | . 2 . . . . Terminals 2 | . 2 . . . . Fabricators . | . . . . . . Repair Stations . | . . . . . . Recycling Units . | . . . . . . Scanalyzers . | . . . . . . Garrison Access . | . . . . . . Terminal Hacks 2 | . 1 . 1 . . Record 1 | . . . 1 . . Robot Analysis 1 | . 1 . . . . Fabricator Hacks . | . . . . . . Repair Station Hacks . | . . . . . . Recycling Unit Hacks . | . . . . . . Scanalyzer . | . . . . . . Garrison Access Hacks . | . . . . . . Unauthorized Hacks . | . . . . . . Terminals . | . . . . . . Fabricators . | . . . . . . Repair Stations . | . . . . . . Recycling Units . | . . . . . . Scanalyzers . | . . . . . . Garrison Access . | . . . . . . Data Cores Recovered . | . . . . . . Used . | . . . . . . Hacking Detections . | . . . . . . Full Trace Events . | . . . . . . Feedback Events . | . . . . . . Feedback Blocked . | . . . . . . Robot Schematics Acquired . | . . . . . . Robots Built . | . . . . . . Authchips . | . . . . . . Time . | . . . . . . Total Robot Build Rating . | . . . . . . Part Schematics Acquired . | . . . . . . Parts Built . | . . . . . . Authchips . | . . . . . . Time . | . . . . . . Total Part Build Rating . | . . . . . . Parts Repaired . | . . . . . . Time . | . . . . . . Parts Recycled . | . . . . . . Recycled Matter . | . . . . . . Retrieved Matter . | . . . . . . Retrieved Components . | . . . . . . Parts Scanalyzed . | . . . . . . Part Schematics Acquired . | . . . . . . Parts Damaged . | . . . . . . Bothacking | -11 -10 -10 -10 -9 -8 ------------ Run | Jun Mat Min Exi Min Mat Used RIF Installer . | . . . . . . Robots Hacked . | . . . . . . Non-combat . | . . . . . . Combat . | . . . . . . Robot Hacks Applied . | . . . . . . Relay Couplers Released . | . . . . . . Fabnet Peak Effective % . | . . . . . . Robots Rewired . | . . . . . . Allies Hacked . | . . . . . . Hacks Repelled . | . . . . . . Allies | -11 -10 -10 -10 -9 -8 -------- Run | Jun Mat Min Exi Min Mat Total Allies . | . . . . . . Largest Group . | . . . . . . Highest-Rated Group . | . . . . . . Highest-Rated Ally . | . . . . . . Total Orders . | . . . . . . Ally Attacks . | . . . . . . Total Damage . | . . . . . . Kills . | . . . . . . Allies Corrupted . | . . . . . . Allies Melted . | . . . . . . Intel | -11 -10 -10 -10 -9 -8 ------- Run | Jun Mat Min Exi Min Mat Robot Analysis Total 1 | . 1 . . . . Derelict Logs Recovered 2 | . . 2 . . . Drone Launches . | . . . . . . Drone Recoveries . | . . . . . . Exploration | -11 -10 -10 -10 -9 -8 ------------- Run | Jun Mat Min Exi Min Mat Turns Passed 1644 | 110 225 239 673 314 83 Spaces Moved 1073 | 80 135 170 448 213 27 Core 8 | 8 . . . . . Treads 5 | . . . . . 5 Legs 841 | 72 135 170 448 16 . Wheels 219 | . . . . 197 22 Hover . | . . . . . . Flight . | . . . . . . Fastest Speed 50 | 50 120 120 120 115 115 Average Speed 134 | 113 120 120 150 127 138 Slowest Speed 400 | 120 120 120 260 400 240 Overloaded Moves . | . . . . . . Propulsion Burnouts . | . . . . . . Robots Hopped . | . . . . . . Cave-ins Triggered . | . . . . . . Exploration Rate (%) 36 | 7 31 33 90 54 5 Regions Visited 5 Branch Regions 3 Pre-discovered Areas 2 | . . 2 . . . Known Exits Taken . | . . . . . . Unknown Exits Taken 5 | 1 1 1 1 1 . Scrap Searched 1 | . . 1 . . . Spaces Dug . | . . . . . . Terrain Destroyed 5 | . . . . 5 . Melee . | . . . . . . Projectile . | . . . . . . AOE 5 | . . . . 5 . Terrain Rammed . | . . . . . . Walls Destroyed . | . . . . . . Machines Disabled . | . . . . . . Actions | -11 -10 -10 -10 -9 -8 --------- Run | Jun Mat Min Exi Min Mat Total 1202 | 95 167 191 448 234 67 Wait 43 | 2 7 . . 1 33 Move 1068 | 79 134 169 447 212 27 Hop . | . . . . . . Pick Up 13 | 7 2 1 . 3 . Fast Attach 7 | 6 1 . . . . Attach 6 | . . . . 4 2 Detach . | . . . . . . Swap 7 | . 2 4 1 . . Drop 8 | . 3 4 . 1 . Fire 45 | 1 18 8 . 13 5 Melee . | . . . . . . Ram . | . . . . . . Kick 5 | . . 5 . . . Crush . | . . . . . . Escape Stasis . | . . . . . . Rewire . | . . . . . . Trap . | . . . . . . Miscellaneous . | . . . . . . Route ------- -11/Junkyard -10/Materials -10/Mines -10/Exiles -9/Mines -8/Materials History --------- Turn | Location | Event 10 | -11/Junkyard | Discovered new exit (range 16) 111 | -11/Junkyard | Entered Materials 227 | -10/Materials | Discovered new exit (range 14) 316 | -10/Materials | Central database locked down 317 | -10/Materials | Build established: Mutant 336 | -10/Materials | Entered Mines 398 | -10/Mines | Learned location of Zion (-7) 458 | -10/Mines | Found a damaged Exp. Sensor Array with a note attached 461 | -10/Mines | Found Prototype Device 569 | -10/Mines | Deemed a non-threat by the Exiles lab entrance 570 | -10/Mines | Discovered new exit (range 5) 575 | -10/Mines | Entered Exiles 575 | -10/Exiles | Found Exiles lab abandoned 1214 | -10/Exiles | Discovered new exit (range 14) 1248 | -10/Exiles | Entered Mines 1249 | -9/Mines | Assembled infested the area 1304 | -9/Mines | Core integrity fell below 50% 1554 | -9/Mines | Discovered new exit (range 8) 1562 | -9/Mines | Entered Materials 1562 | -8/Materials | Evolved 4 slots: Propulsion x2, Utility x2 1645 | -8/Materials | Self-destructed Last Messages --------------- PARAMETERS=PROPULSION+2,UTILITY+2 LOCATION=UNKNOWN GOAL=ESCAPE 01581_ H-61 Shepherd calls for reinforcements. 01581_ ALERT: Suspicious intruders detected, dispatching Specialist reinforcements to area. 01621_ Lgt. Assault Rifle destroyed. 01635_ H-61 Shepherd calls for reinforcements. 01635_ ALERT: Hostile activity reported, dispatching reinforcements to area. 01635_ Penetrated by Slug. 01635_ Knocked back. 01637_ Lgt. Treads destroyed. 01637_ Knocked back. 01638_ Acquired 3 matter. 01640_ Knocked back. 01642_ Lgt. Treads destroyed. 01642_ Lgt. Nuclear Core destroyed. 01642_ Critical hit (Blast). 01644_ Sml. Laser destroyed. Map ----- +----------------------------------------------------+ | ?????????????????????????????????????????????????? | | ?????????????????????????????????????????????????? | | ?????????????????????????????????????????????????? | | ?????????????????????????????????????????????????? | | ?????????????????????????????????????????????????? | | ?????????????????????????????????????????????????? | | ?????????????????????????????????????????????????? | | ?????????????????????????????????????????????????? | | ?????????????????????????????????????????????????? | | ?????????????????????????????????????????????????? | | ?????????????????????????????????????????????????? | | ?????????????????????????????????????????????????? | | ?????????????????????????????????????????????????? | | ?????????????????????????????????????????????????? | | ?????????????????????????????????????????????????? | | ?????????????????????????????????????????????????? | | ?????????????????????????????????????????????????? | | ??????????????????????########???????????????????? | | ??????????????????????# #???????????????????? | | ??????????????????????# #???????????????????? | | ??????????????????????# """ #???????????????????? | | ??????????????????????# """ #???????????????????? | | ???????????????##?????# """ ################????? | | ??????? ##### ??## # % #????? | | ??????? #;%###+## % #????? | | ??????? Y H @%% % #????? | | ??????? ####%#####+#############????? | | ??????? ##### ????## #???????????? | | ???????????????### ??????# #???????????? | | ?????????????????#???????# #???????????? | | ?????????????????????????# #???????????? | | ?????????????????????????# " """"" #???????????? | | ?????????????????????????# """"""""" #???????????? | | ?????????????????????????# """ """ #???????????? | | ?????????????????????????#############???????????? | | | | | | | | | | | | | | | | | | | | | | | | | | | | | | | +----------------------------------------------------+ Best States ------------- Heat Dissipation 31 Energy Generation 14 Energy Capacity 160 Matter Stores 300 Matter Capacity 300 Sight Range 16 Terrain Scan Density 10 Weapon Shielding 33 Evasion (%) 55 Recoil Reduction 2 Item Schematics ----------------- None Robot Schematics ------------------ None Fabricated ------------ Nothing Alien Tech Used ----------------- None Achievements -------------- None Challenges ------------ None Game ------ Seed ReinforcedHypervelocityUnit Manual? 0 Play Time 00:06:33 Cumulative 198.6 hours Start 2023.08.11 @ 21:01:13 End 2023.08.11 @ 21:07:04 Sessions 1 Manual Loads 0 Difficulty Rogue Special Mode None Game No. 239 Rogue 239 Adventurer 0 Explorer 0 Win Type - Total 4 Types 2/0/0/1/0/0/1/0/0 Lore% 69 Gallery% 77 Achievement% 61 Wizard Run 0 Options --------- ASCII 0 Keyboard 0 Movement Numpad Keybinds 0 Fullscreen 1 Font 18/SmallcapsGlow Map View 76x50 Tactical HUD 1 Map Filters NONE Filters NONE Steam 1 RUN: 76618a2c-4040-42a5-92fc-1d39e1800d59